bitfinex/quotes_SOLUSD_20250514
["timestamp","ask_amount","ask_price","bid_price","bid_amount"]
[1747203855753,13.69958898,182.49,182.42,17.78]
[1747203855965,22.01018273,182.49,182.42,17.78]
[1747203856453,5.4800526,182.48,182.42,17.78]
[1747203856652,27.49077787,182.48,182.42,17.78]
[1747203857072,27.49288027,182.46,182.42,17.78]
[1747203858353,19.18228652,182.46,182.42,17.78]
[1747203868584,5.48065329,182.46,182.42,17.78]
[1747203869798,5.48035293,182.47,182.42,17.78]
[1747203871691,8.31059375,182.45,182.42,17.78]
[1747203871864,26.96024261,182.46,182.42,17.78]
[1747203872692,5.48095368,182.45,182.42,17.78]
[1747203873281,5.48095368,182.45,182.36,7.8709]
[1747203873282,8.31059375,182.43,182.36,7.8709]
[1747203873486,46.58810631,182.45,182.36,7.8709]
[1747203873487,26.96024261,182.42,182.36,7.8709]
[1747203873789,8.31059375,182.41,182.36,7.8709]
[1747203874879,5.48245614,182.4,182.36,7.8709]
[1747203875778,5.48245614,182.4,182.36,1.5888]
[1747203878984,13.70572436,182.41,182.36,1.5888]
[1747203879193,22.01631811,182.41,182.36,1.5888]
[1747203879378,8.31059375,182.4,182.36,1.5888]
[1747203879577,8.31059375,182.4,182.35,17.78]
[1747203880594,8.31059375,182.4,182.35,43.78]
[1747203881205,5.48275673,182.39,182.35,43.78]
[1747203883200,19.18787994,182.41,182.35,43.78]
[1747203884581,13.70572436,182.41,182.35,43.78]
[1747203885077,5.48185505,182.42,182.35,43.78]
[1747203885402,5.48185505,182.42,182.35,46.52193857]
[1747203885999,5.48185505,182.42,182.35,43.78]
[1747203886500,13.70352123,182.44,182.38,26.0]
[1747203891681,5.48095368,182.45,182.39,1.6208]
[1747203891882,5.48095368,182.45,182.42,26.0]
[1747203892101,5.4800526,182.48,182.42,26.0]
[1747203892929,5.47885163,182.52,182.44,26.0]
[1747203893132,5.47885163,182.52,182.44,43.78]
[1747203893342,19.17598071,182.52,182.44,43.78]
[1747203895034,5.47885163,182.52,182.44,46.52059634]
[1747203895734,5.47885163,182.52,182.45,1.6231]
[1747203897318,19.1732198,182.55,182.45,4.36355316]
[1747203902165,19.1732198,182.55,182.45,1.6231]
[1747203903857,19.1732198,182.55,182.45,4.36356722]
[1747203904428,5.47795124,182.55,182.46,6.2035]
[1747203904652,5.47735115,182.57,182.5,26.0]
[1747203904950,5.47735115,182.57,182.5,43.76]
[1747203905854,19.17012497,182.58,182.5,43.76]
[1747203909546,5.47705115,182.58,182.5,43.76]
[1747203909751,5.47705115,182.58,182.5,46.49971785]
[1747203910764,5.47645125,182.6,182.5,46.49971785]
[1747203911348,5.47645125,182.6,182.51,2.71376621]
[1747203912351,5.47585149,182.62,182.54,26.0]
[1747203912546,5.47585149,182.62,182.55,17.76]
[1747203912746,5.47585149,182.62,182.56,17.76]
[1747203914449,26.96024261,182.61,182.56,17.76]
[1747203914772,8.31059375,182.6,182.56,17.76]
[1747203915482,5.47675119,182.59,182.56,17.76]
[1747203917559,5.47645125,182.6,182.56,17.76]
[1747203918063,19.16757939,182.6,182.55,17.76]
[1747203918587,5.47645125,182.6,182.55,17.76]
[1747203919248,5.47645125,182.6,182.56,26.0]
[1747203919448,19.16485695,182.63,182.56,26.0]
[1747203920356,5.47555166,182.63,182.56,26.0]
[1747203920756,5.47555166,182.63,182.58,26.0]
[1747203921083,18.64964886,182.67,182.59,17.76]
[1747203921261,18.64964886,182.68,182.59,17.76]
[1747203921450,24.12370184,182.68,182.62,26.0]
[1747203921655,5.47405298,182.68,182.63,17.74]
[1747203923472,19.15856607,182.69,182.63,17.74]
[1747203923898,5.47375335,182.69,182.63,17.74]
[1747203924891,5.47345374,182.7,182.63,17.74]
[1747203927905,5.47345374,182.7,182.63,20.47776136]
[1747203928072,5.47345374,182.7,182.63,17.74]
[1747203929587,18.64964886,182.69,182.63,17.74]
[1747203929788,8.31059375,182.66,182.63,17.74]
[1747203930697,8.31059375,182.64,182.58,35.48]
[1747203930906,8.31059375,182.63,182.58,35.48]
[1747203931473,5.47585149,182.62,182.58,35.48]
[1747203934176,13.78584561,182.64,182.58,35.48]
[1747203934500,5.47525186,182.64,182.58,35.48]
[1747203935206,5.47525186,182.64,182.59,26.0]
[1747203935382,21.99604694,182.68,182.59,26.0]
[1747203935581,8.31059375,182.66,182.61,26.0]
[1747203936785,8.31059375,182.64,182.59,26.0]
[1747203937383,5.47555166,182.63,182.59,26.0]
[1747203940897,5.47525186,182.64,182.59,26.0]
[1747203941286,27.47397526,182.64,182.58,35.48]
[1747203942281,8.31059375,182.63,182.58,35.48]
[1747203942489,27.47397526,182.64,182.58,35.48]
[1747203943084,19.16338151,182.64,182.58,35.48]
[1747203943283,27.47397526,182.64,182.58,35.48]
[1747203945013,8.31059375,182.6,182.58,17.74]
[1747203945722,18.64964886,182.61,182.58,17.74]
[1747203945886,19.16548022,182.62,182.58,17.74]
[1747203946289,27.47607397,182.62,182.58,17.74]
[1747203949256,27.47607397,182.62,182.55,43.74]
[1747203949988,5.47585149,182.62,182.55,43.74]
[1747203954427,5.47585149,182.62,182.55,46.47897424]
[1747203954622,5.47585149,182.62,182.56,1.5525]
[1747203956304,5.47555166,182.63,182.56,1.5525]
[1747203960130,5.47525186,182.64,182.56,4.291296]
[1747203960427,5.47525186,182.64,182.56,10.461496]
[1747203960629,5.47465235,182.66,182.56,10.461496]
[1747203960827,5.47465235,182.66,182.57,0.28432314]
[1747203961130,5.47405298,182.68,182.6,1.6356]
[1747203961346,5.47405298,182.68,182.61,35.44]
[1747203962004,5.47345374,182.7,182.61,38.17793358]
[1747203963238,26.96024261,182.67,182.6,1.6356]
[1747203963409,26.96024261,182.67,182.61,17.72]
[1747203963605,8.31059375,182.64,182.61,17.72]
[1747203964328,8.31059375,182.67,182.61,17.72]
[1747203964534,44.64964886,182.68,182.61,17.72]
[1747203964746,8.31059375,182.67,182.61,17.72]
[1747203965308,5.47465235,182.66,182.61,17.72]
[1747203967508,18.64964886,182.61,182.56,17.72]
[1747203967714,8.31059375,182.6,182.56,17.72]
[1747203967915,8.31059375,182.61,182.56,17.72]
[1747203969126,5.47645125,182.6,182.56,17.72]
[1747203972544,5.47615136,182.61,182.56,17.72]
[1747203974526,8.31059375,182.61,182.56,17.72]
[1747203974729,8.31059375,182.62,182.56,17.72]
[1747203974933,27.47556708,182.63,182.56,17.72]
[1747203975446,18.64964886,182.62,182.56,17.72]
[1747203976942,5.47562441,182.63,182.56,46.45882055]
[1747203977127,5.47562441,182.63,182.59,26.0]
[1747203978034,5.47495209,182.65,182.59,26.0]
[1747203979132,1.78802314,182.69,182.6,26.0]
[1747203979133,5.47405298,182.68,182.6,26.0]
[1747203980651,19.15857897,182.69,182.6,28.73819296]
[1747203981426,19.15857897,182.69,182.6,26.0]
[1747203982037,26.96024261,182.68,182.6,26.0]
[1747203982656,8.31059375,182.67,182.6,26.0]
[1747203982951,5.47465235,182.66,182.6,26.0]
[1747203983757,19.16128324,182.66,182.6,26.0]
[1747203984653,19.16128324,182.66,182.6,43.7]
[1747203984954,26.96024261,182.72,182.6,46.98586183]
[1747203985864,5.47285464,182.72,182.62,1.5801]
[1747203986042,5.47285464,182.72,182.66,26.0]
[1747203986358,5.47285464,182.72,182.67,17.7]
[1747203986843,19.15323729,182.74,182.67,17.7]
[1747203987958,5.47225566,182.74,182.7,26.0]
[1747203989231,19.15079885,182.76,182.7,26.0]
[1747203991736,8.31059375,182.74,182.68,1.5194]
[1747203992067,26.96024261,182.73,182.68,1.5194]
[1747203992556,18.64964886,182.73,182.68,1.5194]
[1747203993233,8.31059375,182.73,182.68,1.5194]
[1747203993543,8.31059375,182.71,182.67,17.7]
[1747203993844,5.47345374,182.7,182.67,17.7]
[1747203995359,24.12370184,182.68,182.67,17.7]
[1747203996137,5.47405298,182.68,182.67,17.7]
[1747203997039,5.47345374,182.7,182.67,17.7]
[1747203997435,5.47285464,182.72,182.67,17.7]
[1747203998562,18.64964886,182.71,182.67,17.7]
[1747203999665,19.15499124,182.72,182.67,17.7]
[1747204007556,13.68038366,182.75,182.67,17.7]
[1747204007769,18.64964886,182.76,182.7,27.5905]
[1747204009354,18.64964886,182.76,182.7,27.7505]
[1747204009563,5.47195622,182.75,182.7,27.7505]
[1747204010760,5.47195622,182.75,182.71,26.0]
[1747204012777,24.12130567,182.76,182.71,26.0]
[1747204013376,46.11104146,182.76,182.7,27.5905]
[1747204013586,18.64964886,182.73,182.68,17.68]
[1747204014883,5.47285464,182.72,182.68,17.68]
[1747204015756,26.96024261,182.71,182.67,17.7]
[1747204015951,26.96024261,182.71,182.68,0.16]
[1747204016248,18.64964886,182.71,182.68,0.16]
[1747204016467,5.47285464,182.72,182.68,0.16]
[1747204016672,5.47285464,182.72,182.67,43.7]
[1747204017176,24.12190452,182.74,182.67,43.7]
[1747204019760,24.12190452,182.74,182.68,0.16]
[1747204019960,32.32977706,182.75,182.68,0.16]
[1747204021072,13.6801282,182.75,182.68,0.16]
[1747204021279,18.64964886,182.75,182.68,0.16]
[1747204021470,26.96024261,182.75,182.68,0.16]
[1747204021862,18.64964886,182.75,182.68,0.16]
[1747204022180,5.47165681,182.76,182.7,26.0]
[1747204022349,5.47165681,182.76,182.72,1.523]
[1747204022549,5.47165681,182.76,182.73,17.68]
[1747204023381,24.12070696,182.78,182.73,17.68]
[1747204024692,37.79835221,182.78,182.73,17.68]
[1747204027458,5.4710581,182.78,182.73,17.68]
[1747204032686,8.31059375,182.76,182.73,17.68]
[1747204033395,18.64964886,182.74,182.73,17.68]
[1747204033596,5.47195622,182.75,182.73,17.68]
[1747204034293,18.64964886,182.74,182.73,17.68]
[1747204035378,5.47225566,182.74,182.73,17.68]
[1747204037009,18.64964886,182.74,182.73,17.68]
[1747204038073,0.28432314,182.73,182.68,0.16]
[1747204038302,8.31059375,182.69,182.68,0.16]
[1747204038678,8.31059375,182.69,182.66,17.66]
[1747204038879,18.64964886,182.67,182.66,17.66]
[1747204039086,24.12400151,182.67,182.66,17.66]
[1747204039606,32.43459526,182.67,182.66,17.66]
[1747204039899,46.1204769,182.67,182.62,26.0]
[1747204041674,46.1204769,182.67,182.6,248.46]
[1747204043788,26.96024261,182.65,182.6,248.46]
[1747204043982,18.64964886,182.63,182.6,43.66]
[1747204044206,26.96024261,182.63,182.6,17.66]
[1747204044386,18.933972,182.66,182.6,17.66]
[1747204044782,8.31059375,182.63,182.6,17.66]
[1747204045212,18.64964886,182.61,182.6,17.66]
[1747204045418,18.64964886,182.61,182.55,43.66]
[1747204045789,5.47645125,182.6,182.55,43.66]
[1747204046705,19.16757939,182.6,182.55,43.66]
[1747204046882,19.16757939,182.6,182.55,17.66]
[1747204047800,18.64964886,182.59,182.55,17.66]
[1747204048105,26.96024261,182.59,182.55,17.66]
[1747204048317,18.64964886,182.56,182.55,17.66]
[1747204048487,18.64964886,182.56,182.5,17.66]
[1747204048807,18.64964886,182.57,182.5,17.66]
[1747204049012,18.64964886,182.57,182.5,43.66]
[1747204049404,8.31059375,182.57,182.5,43.66]
[1747204049714,18.64964886,182.55,182.5,43.66]
[1747204050584,5.47825134,182.54,182.5,43.66]
[1747204051605,5.47795124,182.55,182.5,43.66]
[1747204054350,5.47675119,182.59,182.5,46.94767027]
[1747204054511,18.64964886,182.58,182.5,46.94767027]
[1747204055108,18.64964886,182.58,182.53,26.0]
[1747204056811,18.64964886,182.56,182.53,26.0]
[1747204057934,5.47795124,182.55,182.51,26.0]
[1747204059203,5.47795124,182.55,182.53,26.0]
[1747204061131,5.47675119,182.59,182.53,26.0]
[1747204064318,5.47675119,182.59,182.54,43.68]
[1747204064527,5.47615136,182.61,182.55,1.5746]
[1747204070306,19.16652976,182.61,182.55,1.5746]
[1747204071835,5.47615136,182.61,182.58,26.0]
[1747204072617,5.47615136,182.61,182.55,8.0275]
[1747204072820,5.47615136,182.61,182.56,26.0]
[1747204073335,18.64964886,182.6,182.54,17.68]
[1747204074206,5.47675119,182.59,182.54,17.68]
[1747204074622,19.16862916,182.59,182.54,17.68]
[1747204078631,18.64964886,182.58,182.54,17.68]
[1747204079757,5.47735115,182.57,182.54,17.68]
[1747204080122,5.47675119,182.59,182.54,17.68]
[1747204081338,5.47675119,182.59,182.57,26.0]
[1747204081653,5.47615136,182.61,182.57,26.0]
[1747204082343,19.16264019,182.65,182.57,26.0]
[1747204082535,19.16264019,182.65,182.58,1.6546]
[1747204084649,19.16264019,182.65,182.58,27.6546]
[1747204087448,18.64964886,182.64,182.58,1.6546]
[1747204088352,5.47555166,182.63,182.58,1.6546]
[1747204091359,19.16264019,182.65,182.58,1.6546]
[1747204094956,8.31059375,182.68,182.58,4.94081353]
[1747204094957,13.68537518,182.68,182.58,4.94081353]
[1747204095827,18.64964886,182.68,182.58,4.94081353]
[1747204096261,5.47375335,182.69,182.58,4.94081353]
[1747204096634,5.47375335,182.69,182.62,26.0]
[1747204096840,5.47375335,182.69,182.62,43.66]
[1747204098051,18.64964886,182.68,182.62,43.66]
[1747204099267,5.47435265,182.67,182.62,43.66]
[1747204099963,5.47435265,182.67,182.62,46.94550071]
[1747204100163,5.47435265,182.67,182.62,43.66]
[1747204101267,5.47405298,182.68,182.62,43.66]
[1747204104648,8.1178,182.92,182.72,26.0]
[1747204104850,8.1178,182.92,182.73,77.19279647]
[1747204105054,8.1178,182.92,182.78,0.28432314]
[1747204105255,11.41197404,182.95,182.82,26.0]
[1747204105455,18.64964886,182.94,182.82,43.13932334]
[1747204105763,24.11592195,182.94,182.83,3.28173713]
[1747204106173,24.11592195,182.94,182.82,33.07841764]
[1747204106468,5.46627309,182.94,182.82,28.73338437]
[1747204106665,24.11592195,182.94,182.82,28.73338437]
[1747204106847,5.46627309,182.94,182.82,28.73338437]
[1747204107049,5.46627309,182.94,182.83,26.0]
[1747204107248,5.46627309,182.94,182.82,2.73338437]
[1747204107548,5.46627309,182.94,182.81,0.28432314]
[1747204107748,5.46627309,182.94,182.84,26.0]
[1747204107971,5.46627309,182.94,182.85,35.64]
[1747204108374,5.75029744,182.95,182.85,35.64]
[1747204108568,18.64964886,182.94,182.85,35.64]
[1747204109845,18.64964886,182.92,182.85,35.64]
[1747204111851,5.46716964,182.91,182.85,35.64]
[1747204113271,19.13509375,182.91,182.85,35.64]
[1747204122850,19.13509375,182.91,182.85,18.0]
[1747204123080,19.13509375,182.91,182.86,17.62]
[1747204125058,5.46716964,182.91,182.89,26.0]
[1747204127182,19.13226192,182.94,182.89,26.0]
[1747204132589,19.13226192,182.94,182.9,17.62]
[1747204132794,19.13226192,182.94,182.9,43.62]
[1747204136378,19.13226192,182.94,182.91,17.76]
[1747204137676,37.77846778,182.97,182.91,17.76]
[1747204139692,65.10535196,182.97,182.91,17.76]
[1747204140485,65.10535196,182.97,182.9,43.62]
[1747204151600,37.77846778,182.97,182.9,43.62]
[1747204153277,5.46537683,182.97,182.93,26.0]
[1747204153483,19.12581901,183.0,182.93,26.0]
[1747204153910,5.46388372,183.02,182.97,26.0]
[1747204154116,5.46388372,183.02,182.98,17.72]
[1747204154981,13.65944711,183.03,182.98,17.72]
[1747204156827,18.64964886,183.02,182.98,17.72]
[1747204157139,5.46418228,183.01,182.98,17.72]
[1747204162339,18.64964886,183.0,182.93,25.31642117]
[1747204162525,26.96024261,183.0,182.93,25.31642117]
[1747204162722,18.64964886,182.98,182.93,25.31642117]
[1747204164241,18.64964886,182.95,182.93,7.59642117]
[1747204166549,24.11592195,182.94,182.93,7.59642117]
[1747204167362,5.46627309,182.94,182.93,7.59642117]
[1747204168844,5.4659743,182.95,182.93,7.59642117]
[1747204174637,5.46477949,182.99,182.96,26.0]
[1747204175156,19.12672823,182.99,182.95,17.62]
[1747204179858,19.12672823,182.99,182.95,18.22]
[1747204180061,5.46477949,182.99,182.95,18.22]
[1747204186735,13.66153389,183.0,182.95,18.22]
[1747204187157,18.64964886,182.99,182.95,18.22]
[1747204189068,5.46507815,182.98,182.95,18.22]
[1747204192160,13.66153389,183.0,182.95,18.22]
[1747204196856,18.64964886,182.99,182.95,18.22]
[1747204197766,26.96024261,182.99,182.95,18.22]
[1747204197978,18.64964886,182.97,182.95,17.62]
[1747204198149,18.64964886,182.97,182.93,7.59642117]
[1747204198484,18.64964886,182.95,182.93,7.59642117]
[1747204199651,5.46627309,182.94,182.93,7.59642117]
[1747204201775,5.4659743,182.95,182.93,7.59642117]
[1747204203751,19.1294736,182.97,182.93,7.59642117]
[1747204204794,5.46477949,182.99,182.93,33.59642117]
[1747204205576,18.64964886,182.98,182.93,33.59642117]
[1747204205872,18.64964886,183.0,182.93,33.59642117]
[1747204206974,5.46418228,183.01,182.97,26.0]
[1747204207858,18.64964886,183.01,182.97,26.0]
[1747204209067,5.46448087,183.0,182.97,26.0]
[1747204210885,18.64964886,182.99,182.96,17.62]
[1747204211044,5.46507815,182.98,182.96,17.62]
[1747204211244,5.46507815,182.98,182.93,25.21642117]
[1747204211245,18.64964886,182.97,182.93,25.21642117]
[1747204212282,5.46507815,182.98,182.93,25.21642117]
[1747204212583,5.46507815,182.98,182.94,26.0]
[1747204213156,37.77533191,183.0,182.94,26.0]
[1747204213574,37.77533191,183.0,182.93,25.21642117]
[1747204213762,37.77533191,183.0,182.94,0.6]
[1747204214682,46.08592566,183.0,182.94,0.6]
[1747204215162,18.64964886,182.97,182.94,0.6]
[1747204215350,18.64964886,182.97,182.93,25.21642117]
[1747204217553,5.46567555,182.96,182.93,25.21642117]
[1747204218176,5.46507815,182.98,182.93,25.21642117]
[1747204218477,5.46507815,182.98,182.93,51.21642117]
[1747204219370,24.11412973,183.0,182.94,0.6]
[1747204223478,5.46388372,183.02,182.96,26.0]
[1747204225463,5.46388372,183.02,182.96,29.27931052]
[1747204226056,5.46388372,183.02,182.98,26.0]
[1747204226259,5.46356475,183.04,182.99,17.62]
[1747204228658,24.11233868,183.06,182.99,17.62]
[1747204229196,37.76906325,183.06,182.99,17.62]
[1747204237196,26.96024261,183.04,182.99,17.62]
[1747204237505,18.64964886,183.02,182.99,17.62]
[1747204239085,5.46418228,183.01,182.99,17.62]
[1747204239498,13.65705969,183.06,182.99,17.62]
[1747204239811,24.11263711,183.05,182.99,17.62]
[1747204240102,37.77010774,183.05,182.99,17.62]
[1747204242382,8.31059375,183.04,182.99,17.62]
[1747204242582,8.31059375,183.04,182.96,43.6]
[1747204242988,46.08070149,183.05,182.96,43.6]
[1747204243189,37.77010774,183.05,182.96,43.6]
[1747204245394,46.08070149,183.05,182.96,43.6]
[1747204245732,18.64964886,183.02,182.96,17.6]
[1747204245892,26.96024261,183.02,182.96,17.6]
[1747204246086,18.64964886,183.02,182.96,17.6]
[1747204247695,18.64964886,183.0,182.96,17.6]
[1747204249706,5.46477949,182.99,182.96,17.6]
[1747204251830,8.59491689,183.04,182.96,17.6]
[1747204251831,5.4635852,183.03,182.96,17.6]
[1747204253631,5.4635852,183.03,182.99,26.0]
[1747204253932,24.11233868,183.06,182.99,26.0]
[1747204254113,24.11233868,183.06,182.99,43.6]
[1747204255825,46.079657,183.06,182.99,17.6]
[1747204256033,18.64964886,183.04,182.99,17.6]
[1747204257010,18.64964886,183.02,182.99,17.6]
[1747204258629,5.46418228,183.01,182.99,17.6]
[1747204259349,13.65719271,183.06,182.99,17.6]
[1747204259516,24.11204029,183.07,182.99,43.6]
[1747204260739,37.76801887,183.07,182.99,43.6]
[1747204261821,19.11837001,183.07,183.0,1.6367]
[1747204262017,5.46239143,183.07,183.02,26.0]
[1747204262218,5.46239143,183.07,183.03,17.6]
[1747204262940,18.64964886,183.09,183.03,17.6]
[1747204262941,5.46209307,183.08,183.03,17.6]
[1747204264137,19.11732575,183.08,183.03,17.6]
[1747204265523,8.31059375,183.06,183.03,17.6]
[1747204265832,8.31059375,183.06,182.95,1.5866]
[1747204265833,8.31059375,183.06,182.99,17.6]
[1747204266042,18.64964886,183.04,182.99,17.6]
[1747204268140,5.4635852,183.03,182.99,17.6]
[1747204269975,18.64964886,183.02,182.98,26.0]
[1747204270122,18.64964886,183.02,182.96,17.6]
[1747204270323,18.64964886,183.02,182.96,43.6]
[1747204270538,18.64964886,183.02,182.96,17.6]
[1747204271028,5.4635852,183.03,182.97,0.6]
[1747204271230,5.4635852,183.03,182.98,26.0]
[1747204272144,37.77010774,183.05,182.98,26.0]
[1747204272646,37.77010774,183.05,182.97,0.6]
[1747204272647,37.77010774,183.05,182.97,26.6]
[1747204273946,37.77010774,183.05,182.98,26.0]
[1747204274541,52.28750149,183.05,182.97,0.6]
[1747204274848,8.31059375,183.04,182.97,0.6]
[1747204275034,18.64964886,183.02,182.97,0.6]
[1747204275431,18.64964886,183.01,182.97,0.6]
[1747204275631,26.96024261,183.01,182.97,0.6]
[1747204275828,18.64964886,183.01,182.96,17.6]
[1747204276348,19.12568305,183.0,182.96,17.6]
[1747204281333,5.46507815,182.98,182.96,17.6]
[1747204287948,19.12777352,182.98,182.93,7.59642117]
[1747204289448,18.64964886,182.97,182.93,7.59642117]
[1747204290245,26.96024261,182.97,182.93,7.59642117]
[1747204290461,18.64964886,182.95,182.93,7.59642117]
[1747204290665,24.11592195,182.94,182.93,7.59642117]
[1747204292674,5.46627309,182.94,182.93,7.59642117]
[1747204292843,5.46537683,182.97,182.93,7.59642117]
[1747204294242,5.46537683,182.97,182.93,33.59642117]
[1747204294443,19.12881892,182.97,182.93,33.59642117]
[1747204294661,13.66344209,182.97,182.93,33.59642117]
[1747204296045,5.4659743,182.95,182.93,7.59642117]
[1747204296447,18.64964886,182.94,182.93,7.59642117]
[1747204297956,5.46627309,182.94,182.93,7.59642117]
[1747204300169,19.12881892,182.97,182.93,7.59642117]
[1747204300570,5.46537683,182.97,182.93,7.59642117]
[1747204302148,5.46477949,182.99,182.96,26.0]
[1747204304250,19.12501309,183.01,182.96,26.0]
[1747204306486,18.64964886,183.0,182.95,17.58]
[1747204308375,5.46477949,182.99,182.95,17.58]
[1747204308885,5.46388372,183.02,182.95,43.58]
[1747204312088,8.31059375,183.06,182.95,20.8594876]
[1747204312089,24.11233868,183.06,182.95,20.8594876]
[1747204312248,24.11233868,183.06,182.96,26.0]
[1747204312454,5.46268982,183.06,182.96,26.0]
[1747204312662,5.46268982,183.06,182.97,6.2388]
[1747204313261,5.46268982,183.06,182.98,1.5279]
[1747204313463,5.46268982,183.06,182.99,17.58]
[1747204313870,5.46239143,183.07,182.99,20.85886363]
[1747204315377,5.46239143,183.07,182.99,17.58]
[1747204316859,5.46239143,183.07,183.0,26.0]
[1747204317058,5.46239143,183.07,183.01,17.58]
[1747204318754,5.46119818,183.11,183.01,17.58]
[1747204318954,5.46119818,183.11,183.04,26.0]
[1747204319189,5.46119818,183.11,183.05,17.56]
[1747204320054,19.11251577,183.13,183.05,17.56]
[1747204322564,18.64964886,183.12,183.05,17.56]
[1747204322768,27.42310952,183.13,183.04,17.56]
[1747204322769,18.64964886,183.08,183.04,17.56]
[1747204322968,18.64964886,183.1,183.04,17.56]
[1747204323366,18.64964886,183.12,183.04,17.56]
[1747204323581,26.96024261,183.12,183.04,17.56]
[1747204324078,18.64964886,183.1,183.04,17.56]
[1747204325988,26.0,183.07,183.04,17.56]
[1747204326183,44.64964886,183.05,182.99,17.56]
[1747204326365,52.96024261,183.05,182.99,19.24]
[1747204326961,44.64964886,183.05,182.99,17.56]
[1747204328369,26.0,183.01,182.9,1.5931]
[1747204328684,18.64964886,183.0,182.94,19.3]
[1747204329101,18.64964886,183.0,182.94,17.56]
[1747204330396,19.12672823,182.99,182.94,17.56]
[1747204330708,18.64964886,182.98,182.94,17.56]
[1747204330866,26.0,182.94,182.89,17.56]
[1747204331197,44.64964886,182.94,182.89,17.56]
[1747204331969,52.96024261,182.94,182.89,17.56]
[1747204332171,54.76176575,182.94,182.89,17.56]
[1747204332397,60.22803884,182.94,182.89,17.56]
[1747204333292,46.64915582,182.94,182.89,17.56]
[1747204333462,19.13195582,182.94,182.89,17.56]
[1747204335166,18.64964886,182.91,182.89,17.56]
[1747204335386,18.64964886,182.91,182.84,17.56]
[1747204335387,26.96024261,182.91,182.84,17.56]
[1747204335781,18.64964886,182.89,182.84,17.56]
[1747204336794,5.46806649,182.88,182.84,17.56]
[1747204337107,5.46746856,182.9,182.84,17.56]
[1747204337794,18.64964886,182.89,182.84,17.56]
[1747204337995,26.96024261,182.89,182.84,17.56]
[1747204338871,18.64964886,182.87,182.84,17.56]
[1747204341401,5.46866455,182.86,182.84,17.56]
[1747204342101,18.64964886,182.85,182.84,17.56]
[1747204342480,18.64964886,182.85,182.79,17.56]
[1747204343493,5.46926274,182.84,182.79,17.56]
[1747204343908,8.31059375,182.8,182.7,1.6209]
[1747204344101,8.31059375,182.79,182.73,17.56]
[1747204344300,8.31059375,182.78,182.73,17.56]
[1747204344491,0.14216157,182.8,182.73,17.56]
[1747204344802,1.6246,182.82,182.73,17.56]
[1747204345182,25.70411959,182.84,182.73,17.56]
[1747204345680,25.70411959,182.84,182.74,3.98332024]
[1747204346007,25.70411959,182.84,182.75,43.56]
[1747204348675,18.64964886,182.81,182.75,26.0]
[1747204348883,18.64964886,182.81,182.74,17.56]
[1747204349097,18.64964886,182.81,182.74,43.56]
[1747204349881,19.14451372,182.82,182.74,43.56]
[1747204349882,5.46986106,182.82,182.74,43.56]
[1747204350813,37.79311546,182.83,182.74,43.56]
[1747204351795,5.46956188,182.83,182.74,46.84328216]
[1747204354782,24.11921074,182.83,182.74,43.56]
[1747204355098,18.64964886,182.82,182.74,43.56]
[1747204355491,18.64964886,182.82,182.74,26.0]
[1747204355696,18.64964886,182.82,182.74,43.56]
[1747204356902,19.14556095,182.81,182.74,43.56]
[1747204357779,19.14556095,182.81,182.73,17.56]
[1747204357985,19.14556095,182.81,182.73,35.12]
[1747204358293,18.64964886,182.8,182.73,17.56]
[1747204358501,1.5734,182.79,182.73,17.56]
[1747204358807,18.64964886,182.78,182.73,17.56]
[1747204358985,5.47135744,182.77,182.73,17.56]
[1747204359305,19.14975104,182.77,182.73,17.56]
[1747204359508,5.47135744,182.77,182.73,17.56]
[1747204361001,5.4710581,182.78,182.73,17.56]
[1747204361389,19.14870335,182.78,182.73,17.56]
[1747204361712,18.64964886,182.77,182.73,17.56]
[1747204363791,5.47165681,182.76,182.73,17.56]